bitfinex-derivatives/quotes_BTCF0:USTF0_20241003
["timestamp","ask_amount","ask_price","bid_price","bid_amount"]
[1727963163634,0.082902,60321.0,60312.0,0.01530248]
[1727963163635,0.3608,60321.0,60312.0,0.01530248]
[1727963163947,0.3608,60321.0,60305.0,0.08541037]
[1727963163948,0.522913,60313.0,60305.0,0.08541037]
[1727963164245,0.522913,60313.0,60308.0,0.082919]
[1727963164246,0.082919,60309.0,60308.0,0.082919]
[1727963164433,0.44,60313.0,60305.0,0.00248737]
[1727963164841,0.082928,60302.0,60301.0,0.082929]
[1727963165038,0.44,60323.0,60301.0,0.44]
[1727963165238,0.36260001,60328.0,60313.0,0.44]
[1727963165239,0.3608,60328.0,60313.0,0.44]
[1727963165438,0.08289,60330.0,60329.0,0.082891]
[1727963165653,0.0807,60332.0,60331.0,0.082888]
[1727963165833,0.3608,60333.0,60332.0,0.082887]
[1727963166734,0.00248772,60334.0,60332.0,0.082887]
[1727963166929,0.00248772,60334.0,60321.0,0.3608]
[1727963166930,1.04248772,60334.0,60321.0,0.3608]
[1727963167146,0.5229,60322.0,60321.0,0.3608]
[1727963167445,0.5229,60322.0,60298.0,0.082933]
[1727963167446,0.3608,60326.0,60307.0,0.44]
[1727963167640,0.3608,60326.0,60325.0,0.082896]
[1727963167941,0.3618,60328.0,60325.0,0.082896]
[1727963167942,0.001,60328.0,60327.0,0.082894]
[1727963168342,0.00248739,60339.0,60338.0,0.082878]
[1727963168531,0.00248739,60339.0,60327.0,0.443694]
[1727963168733,0.00248739,60339.0,60338.0,0.082878]
[1727963169342,0.00248739,60339.0,60336.0,0.08288]
[1727963169539,0.00248739,60339.0,60338.0,0.082878]
[1727963169942,0.00248739,60339.0,60338.0,0.443678]
[1727963170130,0.443654,60357.0,60338.0,1.458]
[1727963170131,0.3608,60357.0,60338.0,1.458]
[1727963170334,0.08284,60366.0,60338.0,1.458]
[1727963170335,0.0154608,60362.0,60354.0,0.44]
[1727963170538,0.0154608,60362.0,60361.0,0.082847]
[1727963171042,0.4459,60377.0,60360.0,0.3608]
[1727963171043,0.082832,60372.0,60360.0,0.3608]
[1727963171243,0.4459,60377.0,60360.0,0.3608]
[1727963171244,0.082836,60370.0,60360.0,0.3608]
[1727963171440,0.4459,60377.0,60366.0,0.44]
[1727963171642,0.4459,60377.0,60369.0,0.082836]
[1727963171643,0.082832,60372.0,60369.0,0.082836]
[1727963171946,0.3608,60384.0,60368.0,0.3608]
[1727963172133,0.082822,60379.0,60375.0,0.082827]
[1727963172332,0.3608,60384.0,60372.0,0.44]
[1727963172634,0.3608,60384.0,60368.0,0.082836]
[1727963172635,0.082829,60375.0,60368.0,0.082836]
[1727963172831,0.082829,60375.0,60370.0,0.082834]
[1727963173242,0.082829,60375.0,60371.0,0.082832]
[1727963173451,0.3608,60384.0,60366.0,0.442]
[1727963173948,0.3608,60384.0,60371.0,0.082833]
[1727963173949,0.082831,60373.0,60371.0,0.082833]
[1727963174347,0.3608,60384.0,60366.0,0.082839]
[1727963174348,0.082837,60369.0,60366.0,0.082839]
[1727963174541,0.08283,60374.0,60360.0,0.3608]
[1727963174942,0.08283,60374.0,60371.0,0.082833]
[1727963175246,0.003,60373.0,60371.0,0.082833]
[1727963175433,0.003,60373.0,60372.0,0.082832]
[1727963176042,0.003,60373.0,60370.0,0.44]
[1727963176043,0.003,60374.0,60373.0,0.08283]
[1727963176634,0.003,60374.0,60360.0,0.3608]
[1727963177034,0.082836,60369.0,60366.0,0.082839]
[1727963177241,0.08283,60373.0,60360.0,0.3608]
[1727963177452,0.003,60374.0,60369.0,0.44]
[1727963177641,0.003,60374.0,60373.0,0.08283]
[1727963177841,0.082833,60371.0,60368.0,0.082837]
[1727963178146,0.004,60373.0,60362.0,0.44]
[1727963178340,0.086831,60373.0,60362.0,0.44]
[1727963178545,0.082838,60368.0,60362.0,0.44]
[1727963178843,0.086831,60373.0,60360.0,0.3608]
[1727963179146,0.086831,60373.0,60367.0,0.082838]
[1727963179147,0.082837,60369.0,60367.0,0.082838]
[1727963179351,0.082837,60369.0,60355.0,0.082854]
[1727963179352,0.082836,60369.0,60355.0,0.082854]
[1727963179560,0.082862,60350.0,60349.0,0.3608]
[1727963179848,0.44,60354.0,60341.0,0.3608]
[1727963180051,0.00248643,60363.0,60351.0,0.8008]
[1727963180254,0.00248643,60363.0,60362.0,0.082846]
[1727963180548,0.082853,60357.0,60355.0,0.082854]
[1727963180747,0.45920479,60374.0,60351.0,0.3608]
[1727963180748,0.082832,60372.0,60361.0,0.082847]
[1727963180940,0.3608,60374.0,60351.0,0.8008]
[1727963181141,0.082834,60371.0,60368.0,0.082837]
[1727963181556,0.3608,60374.0,60363.0,0.44]
[1727963181852,0.3608,60374.0,60359.0,0.082849]
[1727963181853,0.082833,60371.0,60359.0,0.082849]
[1727963182148,0.3608,60374.0,60356.0,0.082854]
[1727963182149,0.001,60357.0,60356.0,0.082854]
[1727963182456,0.001,60357.0,60356.0,0.579894]
[1727963182649,0.001,60357.0,60356.0,1.179894]
[1727963182951,0.001,60357.0,60355.0,0.003]
[1727963183255,0.001,60357.0,60356.0,0.082854]
[1727963183646,0.082837,60368.0,60365.0,0.082841]
[1727963183855,0.08284,60367.0,60365.0,0.082841]
[1727963184155,0.37655041,60374.0,60363.0,0.003]
[1727963184156,0.082838,60368.0,60363.0,0.003]
[1727963184339,0.082838,60368.0,60367.0,0.082839]
[1727963185452,0.37655041,60374.0,60358.0,0.44]
[1727963185453,0.082834,60371.0,60358.0,0.44]
[1727963185663,0.082834,60371.0,60370.0,0.082835]
[1727963186155,0.3608,60374.0,60368.0,0.082837]
[1727963186353,0.082832,60373.0,60371.0,0.082832]
[1727963186745,0.3608,60374.0,60367.0,0.001]
[1727963186746,0.3608,60374.0,60369.0,0.44]
[1727963186952,0.082811,60388.0,60369.0,0.3608]
[1727963186953,0.082826,60377.0,60369.0,0.3608]
[1727963187142,0.082835,60370.0,60369.0,0.3608]
[1727963187345,0.082833,60372.0,60371.0,0.082832]
[1727963187661,0.16622,60381.0,60369.0,0.3608]
[1727963187662,0.082835,60370.0,60369.0,0.3608]
[1727963188155,0.0834,60381.0,60369.0,0.44]
[1727963188156,0.3608,60378.0,60369.0,0.44]
[1727963188347,0.13070273,60380.0,60369.0,0.44]
[1727963188348,0.03200307,60377.0,60376.0,0.082826]
[1727963188661,0.13318828,60385.0,60375.0,0.522827]
[1727963188662,0.08530055,60385.0,60375.0,0.522827]
[1727963188843,0.03199704,60384.0,60381.0,0.082818]
[1727963189044,0.00248555,60385.0,60375.0,0.082826]
[1727963189246,0.00248555,60385.0,60374.0,0.44]
[1727963189555,0.082819,60381.0,60380.0,0.082821]
[1727963190151,0.00248555,60385.0,60370.0,0.3608]
[1727963190449,0.00248555,60385.0,60384.0,0.082815]
[1727963190757,0.49150273,60403.0,60394.0,0.082802]
[1727963190957,0.49150273,60403.0,60396.0,0.522798]
[1727963190958,0.082796,60398.0,60396.0,0.522798]
[1727963191259,0.3608,60403.0,60386.0,0.082813]
[1727963191260,0.082799,60396.0,60395.0,0.0828]
[1727963191448,0.3608,60403.0,60385.0,0.56]
[1727963191449,0.443598,60397.0,60385.0,0.56]
[1727963191644,0.3608,60397.0,60386.0,0.44]
[1727963191844,0.082792,60401.0,60400.0,0.082793]
[1727963192048,0.082792,60401.0,60389.0,0.3608]
[1727963192049,0.03198984,60401.0,60389.0,0.3608]
[1727963192257,0.082804,60393.0,60392.0,0.082804]
[1727963192460,0.3748,60403.0,60389.0,0.3608]
[1727963192653,0.082795,60399.0,60398.0,0.082795]
[1727963193360,0.082795,60399.0,60389.0,0.3608]
[1727963193562,0.082807,60391.0,60390.0,0.082807]
[1727963193947,0.082801,60395.0,60394.0,0.0828]
[1727963194449,0.001,60397.0,60392.0,0.082803]
[1727963194450,0.082803,60394.0,60392.0,0.082803]
[1727963194657,0.082803,60394.0,60393.0,0.082803]
[1727963194859,0.082793,60401.0,60389.0,0.3608]
[1727963194860,0.082807,60390.0,60389.0,0.3608]
[1727963195162,0.082807,60390.0,60389.0,0.3648]
[1727963195352,0.082815,60384.0,60376.0,0.082826]
[1727963195553,0.082815,60384.0,60371.0,0.3608]
[1727963195949,0.082815,60384.0,60376.0,0.082825]
[1727963196155,0.082815,60384.0,60372.0,0.08283]
[1727963196363,0.082835,60370.0,60369.0,0.082835]
[1727963196559,0.08283,60374.0,60364.0,0.36328491]
[1727963196864,0.082819,60382.0,60380.0,0.08282]
[1727963197161,0.082824,60378.0,60377.0,0.082823]
[1727963197846,0.3608,60384.0,60369.0,0.44]
[1727963198050,0.082835,60370.0,60369.0,0.082835]
[1727963198249,0.082835,60370.0,60364.0,0.36524491]
[1727963198250,0.3608,60370.0,60364.0,0.00348491]
[1727963198458,0.082841,60365.0,60364.0,0.00348491]
[1727963198862,0.579841,60365.0,60364.0,0.00348491]
[1727963199068,0.579841,60365.0,60364.0,0.00248491]
[1727963199069,0.082841,60365.0,60364.0,0.00248491]
[1727963199258,0.3608,60370.0,60364.0,0.44248491]
[1727963199457,0.3608,60370.0,60369.0,0.082836]
[1727963199655,0.3608,60377.0,60364.0,0.00248491]
[1727963199964,0.082834,60371.0,60370.0,0.082834]
[1727963200366,0.3608,60377.0,60364.0,0.00248491]
[1727963200551,0.082841,60365.0,60364.0,0.00248491]
[1727963200859,0.445641,60365.0,60364.0,0.00248491]
[1727963201058,0.082863,60350.0,60349.0,0.082863]
[1727963201358,0.082863,60350.0,60341.0,0.8008]
[1727963201359,0.082848,60360.0,60341.0,0.8008]
[1727963201560,0.01525352,60361.0,60341.0,0.8008]
[1727963201763,0.082879,60338.0,60335.0,0.082882]
[1727963201962,0.082869,60345.0,60339.0,0.082877]
[1727963202262,0.082869,60345.0,60330.0,0.8008]
[1727963202263,0.3608,60346.0,60330.0,0.8008]
[1727963202465,0.08287,60345.0,60334.0,0.082884]
[1727963202648,0.08287,60345.0,60330.0,0.8008]
[1727963202649,0.08287,60344.0,60331.0,0.082888]
[1727963202851,0.3598,60346.0,60330.0,0.8008]
[1727963202852,0.3598,60346.0,60335.0,0.44]
[1727963203051,0.08287,60345.0,60335.0,0.44]
[1727963203259,0.001,60350.0,60341.0,0.44]
[1727963203462,0.001,60350.0,60349.0,0.082863]
[1727963203871,0.08285,60359.0,60350.0,0.082861]
[1727963204159,0.08285,60359.0,60343.0,0.3608]
[1727963204160,0.082861,60351.0,60343.0,0.3608]
[1727963204365,0.082861,60351.0,60349.0,0.082863]
[1727963204562,0.0853,60358.0,60343.0,0.3608]
[1727963204563,0.082852,60357.0,60343.0,0.3608]
[1727963204859,0.082852,60357.0,60346.0,0.082867]
[1727963204860,0.082865,60349.0,60346.0,0.082867]
[1727963205262,0.082865,60348.0,60346.0,0.082867]
[1727963205450,0.001,60350.0,60343.0,0.44367]
[1727963205652,0.082867,60347.0,60344.0,0.08287]
[1727963205851,0.082868,60346.0,60344.0,0.08287]
[1727963206471,0.082877,60340.0,60337.0,0.082879]
[1727963206659,0.082871,60344.0,60335.0,0.44]
[1727963206858,0.08287,60344.0,60335.0,0.44]
[1727963207052,0.08287,60344.0,60341.0,0.082874]
[1727963207258,0.3608,60350.0,60341.0,0.082874]
[1727963207567,0.3608,60350.0,60335.0,0.44]
[1727963207568,0.08288,60339.0,60338.0,0.082878]
[1727963207756,0.082865,60348.0,60335.0,0.44]
[1727963207957,0.082875,60341.0,60338.0,0.082878]
[1727963208261,0.001,60344.0,60338.0,0.082878]
[1727963208262,0.082876,60340.0,60338.0,0.082878]
[1727963208464,0.082876,60340.0,60335.0,0.44]
[1727963208762,0.082876,60340.0,60339.0,0.082877]
[1727963209355,0.082865,60348.0,60335.0,0.44]
[1727963209555,0.082871,60344.0,60343.0,0.082871]
[1727963209759,0.082869,60345.0,60344.0,0.082869]
[1727963210459,0.082869,60345.0,60334.0,0.082883]
[1727963210460,0.13070273,60356.0,60341.0,0.44]
[1727963210688,0.528952,60358.0,60331.0,0.56]
[1727963210689,0.03201845,60353.0,60352.0,0.082859]
[1727963210865,0.13070273,60363.0,60353.0,0.082858]
[1727963211068,0.443639,60367.0,60353.0,1.09708]
[1727963211364,0.11484717,60366.0,60365.0,0.082841]
[1727963211566,0.03200717,60366.0,60365.0,0.082841]
[1727963212070,0.03200596,60366.0,60361.0,0.44]
[1727963212370,0.00248589,60374.0,60373.0,0.08283]
[1727963212564,0.11731754,60374.0,60373.0,0.08283]
[1727963212761,0.00248589,60374.0,60373.0,0.52283]
[1727963213257,0.082811,60388.0,60387.0,0.082811]
[1727963213458,0.11480826,60388.0,60387.0,0.082811]
[1727963213969,0.03199726,60388.0,60382.0,0.082818]
[1727963214170,0.082813,60386.0,60385.0,0.082814]
[1727963214469,0.03199726,60386.0,60385.0,0.082814]
[1727963214668,0.13070273,60395.0,60382.0,0.082818]
[1727963214871,0.03199384,60394.0,60390.0,0.44]
[1727963215064,0.03199278,60393.0,60390.0,0.44]
[1727963215370,0.00184,60397.0,60396.0,0.082799]
[1727963215577,0.03199093,60397.0,60396.0,0.082799]
[1727963216857,0.003,60393.0,60382.0,0.3608]
[1727963217061,0.082807,60390.0,60388.0,0.08281]
[1727963217371,0.082813,60386.0,60385.0,0.082813]
[1727963218269,0.165599,60396.0,60388.0,0.082809]
[1727963218471,0.082808,60390.0,60384.0,0.082815]
[1727963218674,0.082808,60390.0,60389.0,0.082808]
[1727963218864,0.11480322,60390.0,60389.0,0.082808]
[1727963219368,0.082808,60390.0,60389.0,0.082808]
[1727963219670,0.3608,60396.0,60395.0,0.0828]
[1727963219872,0.3608,60396.0,60395.0,0.5228]
[1727963220168,0.3608,60396.0,60386.0,0.082813]
[1727963220169,0.082812,60387.0,60386.0,0.082813]
[1727963220359,0.082805,60392.0,60391.0,0.082804]
[1727963220568,0.082814,60387.0,60386.0,0.082812]
[1727963220873,0.082812,60387.0,60378.0,0.082823]
[1727963221073,0.082812,60387.0,60381.0,0.44]
[1727963221282,0.008,60396.0,60387.0,0.082811]
[1727963221572,0.008,60396.0,60395.0,0.0828]
[1727963221959,0.08281,60388.0,60387.0,0.082811]
[1727963222165,0.082822,60379.0,60378.0,0.082823]
[1727963222360,0.082822,60379.0,60362.0,0.3608]
[1727963222361,0.082826,60376.0,60362.0,0.3608]
[1727963222568,0.11482718,60376.0,60362.0,0.3608]
[1727963222773,0.03200118,60376.0,60366.0,0.44]
[1727963223071,0.06400304,60376.0,60375.0,1.18219248]
[1727963223276,0.36328524,60389.0,60375.0,1.18219248]
[1727963223578,0.36328524,60389.0,60388.0,0.08281]
[1727963223579,0.00248524,60389.0,60388.0,0.08281]
[1727963223875,0.08529324,60389.0,60388.0,0.08281]
[1727963224071,0.08529324,60389.0,60375.0,0.00336448]
[1727963224072,0.082818,60385.0,60375.0,0.00248448]
[1727963224370,0.082826,60377.0,60376.0,0.082826]
[1727963224576,0.08281,60388.0,60375.0,0.00248448]
[1727963224577,0.082826,60376.0,60375.0,0.00248448]
[1727963225061,0.48419825,60376.0,60375.0,0.00248448]
[1727963225271,0.165657,60375.0,60368.0,0.082837]
[1727963225471,0.443636,60369.0,60351.0,0.3608]
[1727963225764,0.443636,60369.0,60352.0,0.082859]
[1727963225765,0.1633795,60353.0,60352.0,0.082859]
[1727963226274,0.082862,60350.0,60348.0,0.082864]
[1727963226463,0.25481579,60349.0,60348.0,0.082864]
[1727963226664,0.082867,60346.0,60345.0,0.0024854]
[1727963227064,0.17430582,60346.0,60345.0,0.0024854]
[1727963227567,0.17430582,60346.0,60333.0,0.44]
[1727963227568,0.09143882,60346.0,60333.0,0.44]
[1727963227760,0.1632653,60337.0,60336.0,0.082881]
[1727963227969,0.25470412,60337.0,60332.0,0.00248602]
[1727963228262,0.25470412,60337.0,60318.0,0.3608]
[1727963228263,0.443685,60333.0,60316.0,0.44]
[1727963228463,0.443685,60333.0,60313.0,0.3608]
[1727963228464,0.14683561,60321.0,60313.0,0.3608]
[1727963228660,0.14683561,60321.0,60314.0,0.082911]
[1727963228661,0.08291,60316.0,60314.0,0.082911]
[1727963229062,0.08291,60316.0,60307.0,0.00248727]
[1727963229063,0.14675243,60315.0,60307.0,0.00248727]
[1727963229266,0.14675243,60315.0,60282.0,0.44]
[1727963229267,0.3608,60308.0,60282.0,0.44]
[1727963229469,0.3608,60308.0,60286.0,0.082949]
[1727963229470,0.13038726,60292.0,60286.0,0.082949]
[1727963229773,0.04057225,60291.0,60287.0,0.082948]
[1727963230076,0.13018279,60289.0,60283.0,0.44]
[1727963230384,0.12995271,60291.0,60283.0,0.44]
[1727963230580,0.12995271,60294.0,60293.0,0.08294]
[1727963230878,0.04062126,60294.0,60293.0,0.08294]
[1727963231070,0.12995271,60297.0,60296.0,0.082936]
[1727963231265,0.12995271,60297.0,60284.0,0.3608]
[1727963231266,0.04062063,60297.0,60294.0,0.44]
[1727963231461,0.12995271,60299.0,60294.0,0.44]
[1727963231462,0.3608,60301.0,60294.0,0.44]
[1727963231678,0.05949115,60310.0,60305.0,0.082924]
[1727963231975,0.05949115,60310.0,60309.0,0.082918]
[1727963232291,0.05949115,60310.0,60309.0,0.06314868]
[1727963232777,0.05949115,60310.0,60309.0,1.16058868]
[1727963233080,0.05700388,60310.0,60309.0,0.06314868]
[1727963233576,0.05700388,60310.0,60302.0,0.3608]
[1727963233780,0.05700388,60310.0,60309.0,0.082918]
[1727963233972,0.05800388,60310.0,60309.0,0.086918]
[1727963234168,0.05800388,60310.0,60309.0,1.184358]
[1727963235065,8.8e-07,60310.0,60309.0,1.184358]
[1727963235775,0.3608,60327.0,60309.0,1.184358]
[1727963235776,7.3e-07,60315.0,60314.0,0.082911]
[1727963235979,0.082889,60331.0,60316.0,0.082908]
[1727963236275,0.082894,60327.0,60314.0,0.00084]
[1727963236476,0.14619763,60339.0,60320.0,0.44]
[1727963236477,0.12995271,60335.0,60320.0,0.44]
[1727963236682,0.49075271,60337.0,60328.0,0.44]
[1727963236880,0.082882,60336.0,60332.0,0.082887]
[1727963237178,0.082882,60336.0,60322.0,0.44]
[1727963237380,0.3608,60337.0,60334.0,0.082884]
[1727963237572,0.3608,60337.0,60322.0,0.44]
[1727963237767,0.3608,60337.0,60320.0,0.56088]
[1727963237975,0.3608,60337.0,60320.0,0.56]
[1727963238284,0.082891,60330.0,60326.0,0.082895]
[1727963238479,0.3608,60337.0,60320.0,0.56]
[1727963238680,0.44,60332.0,60309.0,0.3608]
[1727963238880,0.44,60326.0,60313.0,0.082912]
[1727963239182,0.04060536,60331.0,60316.0,0.082908]
[1727963239183,0.082902,60321.0,60316.0,0.082908]
[1727963239376,0.082901,60322.0,60316.0,0.082908]
[1727963239679,0.082907,60317.0,60316.0,0.082908]
[1727963239870,0.082913,60313.0,60308.0,0.082918]
[1727963240278,0.082913,60313.0,60303.0,0.56]
[1727963240279,0.082914,60313.0,60303.0,0.56]
[1727963240579,0.082915,60312.0,60307.0,0.082921]
[1727963240779,0.082917,60310.0,60307.0,0.082921]
[1727963240983,0.3608,60318.0,60302.0,0.3608]
[1727963240984,0.3608,60318.0,60309.0,0.082918]
[1727963241370,0.3608,60318.0,60302.0,0.9208]
[1727963241575,0.082917,60310.0,60302.0,0.9208]
[1727963241775,0.3608,60318.0,60302.0,0.9208]
[1727963241972,0.3608,60318.0,60302.0,1.3608]
[1727963242181,0.3608,60318.0,60307.0,0.08292]
[1727963242182,0.082916,60311.0,60307.0,0.08292]
[1727963242384,0.082919,60309.0,60307.0,0.08292]
[1727963242584,0.44,60308.0,60296.0,0.00248771]
[1727963242773,0.082935,60297.0,60296.0,0.00248771]
[1727963242971,0.082935,60297.0,60273.0,0.522967]
[1727963242972,0.44,60297.0,60273.0,0.522967]
[1727963243278,0.44,60297.0,60267.0,0.37619952]
[1727963243279,0.082955,60282.0,60267.0,0.3608]
[1727963243476,0.3608,60284.0,60267.0,0.44]
[1727963243680,0.082955,60282.0,60275.0,0.082964]
[1727963244080,0.082955,60282.0,60277.0,0.082962]
[1727963244383,0.082955,60282.0,60274.0,0.082966]
[1727963244593,0.580635,60282.0,60275.0,0.082965]
[1727963244775,0.580635,60282.0,60262.0,0.8008]
[1727963244981,0.580635,60282.0,60277.0,0.082962]
[1727963245397,0.082955,60282.0,60281.0,0.03192273]
[1727963245578,0.3608,60284.0,60283.0,0.082954]
[1727963245780,0.3608,60284.0,60281.0,0.03192273]
[1727963245979,0.082955,60282.0,60281.0,0.03192273]
[1727963246280,0.082955,60282.0,60268.0,0.082974]
[1727963246281,0.44,60278.0,60268.0,0.082974]
[1727963246482,0.44,60278.0,60269.0,0.082973]
[1727963246483,0.082968,60274.0,60269.0,0.082973]
[1727963246685,0.082971,60271.0,60265.0,0.082978]
[1727963246876,0.44,60278.0,60269.0,0.082973]
[1727963247082,0.44,60278.0,60261.0,0.56]
[1727963247276,0.44,60278.0,60256.0,0.44]
[1727963247277,0.082973,60270.0,60269.0,0.082973]
[1727963247776,0.082967,60274.0,60256.0,0.56]
[1727963247979,0.44,60278.0,60261.0,0.44]
[1727963247980,0.082962,60278.0,60261.0,0.44]
[1727963248176,0.44,60278.0,60260.0,0.00248858]
[1727963248390,0.082968,60273.0,60271.0,0.08297]
[1727963248580,0.082962,60277.0,60269.0,0.082972]
[1727963248777,0.082969,60273.0,60272.0,0.082969]
[1727963249186,0.001,60278.0,60276.0,0.082964]
[1727963249384,0.001,60278.0,60261.0,0.44]
[1727963249385,0.443762,60277.0,60261.0,0.44]
[1727963249686,0.443762,60277.0,60276.0,0.082964]
[1727963249687,0.3608,60277.0,60276.0,0.082964]
[1727963249886,0.3618,60277.0,60276.0,0.082964]
[1727963250087,0.082967,60274.0,60262.0,0.082983]
[1727963250301,0.44,60267.0,60256.0,0.56084]
[1727963250482,0.44,60267.0,60249.0,0.08548964]
[1727963250483,0.3608,60258.0,60257.0,0.08299]
[1727963250790,0.082983,60263.0,60260.0,0.082984]
[1727963251102,0.3608,60265.0,60253.0,0.082995]
[1727963251284,0.3608,60265.0,60264.0,0.08298]
[1727963252681,0.001,60267.0,60260.0,0.8008]
[1727963252878,0.3608,60277.0,60266.0,0.082977]
[1727963253092,0.3608,60277.0,60276.0,0.082964]
[1727963253391,0.3608,60284.0,60283.0,0.082954]
[1727963253781,0.01514594,60285.0,60284.0,0.082953]
[1727963253985,0.3608,60290.0,60277.0,0.082962]
[1727963254290,0.082952,60285.0,60284.0,0.082953]
[1727963254993,0.3608,60290.0,60284.0,0.082953]
[1727963255185,0.082935,60297.0,60296.0,0.082935]
[1727963255383,0.00248898,60303.0,60290.0,0.44]
[1727963255580,0.00248898,60303.0,60302.0,0.082928]
[1727963255789,0.00248898,60303.0,60302.0,0.522928]
[1727963255993,0.3608,60314.0,60313.0,0.082913]
[1727963256383,0.443711,60314.0,60313.0,0.082913]
[1727963256581,0.443711,60314.0,60307.0,0.04915592]
[1727963256582,0.9608,60314.0,60307.0,0.04915592]
[1727963256786,0.44,60308.0,60294.0,0.06599373]
[1727963257089,0.01572782,60318.0,60292.0,0.08220652]
[1727963257090,0.3608,60295.0,60292.0,0.06599373]
[1727963257278,0.3608,60295.0,60287.0,0.06848182]
[1727963257483,0.3608,60295.0,60287.0,0.00248809]
[1727963257484,0.443747,60288.0,60287.0,0.00248809]
[1727963257683,0.443747,60288.0,60280.0,0.06599373]
[1727963257684,0.3608,60288.0,60280.0,0.06599373]
[1727963257884,0.082961,60278.0,60276.0,0.06599373]
[1727963258088,0.082958,60281.0,60277.0,0.082961]
[1727963258295,0.082957,60282.0,60277.0,0.082961]
[1727963258497,0.44,60285.0,60277.0,0.082961]
[1727963258700,0.082961,60278.0,60277.0,0.082961]
[1727963258890,0.082949,60287.0,60280.0,0.082957]
[1727963259087,0.082952,60285.0,60279.0,0.44]
[1727963259283,0.3608,60288.0,60281.0,0.06599373]
[1727963259495,0.3608,60288.0,60277.0,0.08220652]
[1727963259496,0.001,60282.0,60279.0,0.06599373]
[1727963259796,0.001,60282.0,60277.0,0.01]
[1727963259797,0.082959,60280.0,60277.0,0.01]
[1727963259988,0.001,60282.0,60277.0,0.092961]
[1727963260189,0.082963,60277.0,60274.0,0.14895873]
[1727963260389,0.082963,60277.0,60276.0,0.082964]
[1727963260695,0.523953,60285.0,60274.0,0.06599373]
[1727963260696,0.001,60285.0,60274.0,0.06599373]
[1727963260992,0.001,60285.0,60284.0,0.082953]
[1727963260993,0.083952,60285.0,60284.0,0.082953]
[1727963261391,0.001,60285.0,60284.0,0.082953]
[1727963261783,0.3608,60288.0,60281.0,0.06599373]
[1727963261980,0.3608,60288.0,60267.0,0.11511494]
[1727963261981,0.08295,60286.0,60285.0,0.08295]
[1727963262691,0.3608,60288.0,60274.0,0.06599373]
[1727963262993,0.082967,60275.0,60274.0,0.082966]
[1727963263207,0.44,60285.0,60265.0,0.56088]
[1727963263208,0.082962,60278.0,60269.0,0.082973]
[1727963263494,0.44,60285.0,60275.0,0.082964]
[1727963263495,0.082953,60284.0,60275.0,0.082964]
[1727963263698,0.082963,60277.0,60275.0,0.082964]
[1727963263891,0.082964,60276.0,60275.0,0.082964]
[1727963264097,0.082954,60283.0,60273.0,0.44]
[1727963264296,0.003,60286.0,60273.0,0.44]
[1727963264493,0.082958,60281.0,60279.0,0.082958]
[1727963264697,0.082964,60276.0,60275.0,0.082964]
[1727963264892,0.44,60283.0,60269.0,0.06599373]
[1727963265092,0.082967,60274.0,60273.0,0.082967]
[1727963265490,0.001,60278.0,60277.0,0.082962]
[1727963265991,0.001,60278.0,60277.0,0.522962]
[1727963266192,0.3608,60288.0,60277.0,1.06599373]
[1727963266392,0.3608,60288.0,60285.0,0.08295]
[1727963266393,0.082951,60286.0,60285.0,0.08295]
[1727963266596,0.3608,60288.0,60287.0,0.082949]
[1727963266800,0.08542921,60293.0,60292.0,0.082942]
[1727963266990,0.00248921,60293.0,60282.0,0.06599373]
[1727963267186,0.082952,60285.0,60281.0,0.06599373]
[1727963267385,0.3608,60285.0,60278.0,0.06599373]
[1727963267588,0.3608,60285.0,60271.0,0.45946995]
[1727963267589,0.082962,60278.0,60276.0,0.082963]
[1727963267789,0.3608,60285.0,60274.0,0.06599373]
[1727963267989,0.082964,60276.0,60275.0,0.06599373]
[1727963268189,0.082964,60276.0,60275.0,0.14882955]
[1727963268490,0.082966,60274.0,60272.0,0.08220652]
[1727963268689,0.082966,60274.0,60273.0,0.082968]
[1727963269198,0.3608,60274.0,60273.0,0.0659334]
[1727963269388,0.3608,60274.0,60273.0,0.10888753]
[1727963269791,0.3618,60274.0,60273.0,0.32540963]
[1727963269994,0.3618,60274.0,60273.0,0.24320311]
[1727963269995,0.001,60274.0,60273.0,0.24320311]
[1727963270304,0.001,60274.0,60273.0,0.22533853]
[1727963270602,0.001,60274.0,60273.0,0.15935866]
[1727963271699,0.082961,60278.0,60273.0,0.15935866]
[1727963271898,0.082965,60275.0,60274.0,0.13346501]
[1727963272099,0.082965,60275.0,60274.0,0.13346261]
[1727963272904,0.082965,60275.0,60274.0,0.008]
[1727963272905,1.542485,60275.0,60274.0,0.008]
[1727963273205,0.082971,60271.0,60270.0,0.06607376]
[1727963273499,0.082971,60272.0,60271.0,0.082969]
[1727963273692,0.082971,60272.0,60271.0,0.14904276]
[1727963274106,0.3618,60275.0,60274.0,0.082966]
[1727963274691,0.3608,60275.0,60274.0,0.082966]
[1727963275204,0.082968,60273.0,60272.0,0.08247483]
[1727963275394,0.3608,60275.0,60274.0,0.082966]
[1727963275599,0.444765,60275.0,60274.0,0.085966]
[1727963276200,0.3608,60275.0,60274.0,0.082966]
[1727963276504,0.3608,60275.0,60274.0,0.14909065]
[1727963276703,0.3608,60275.0,60274.0,0.082966]
[1727963277305,0.3608,60285.0,60274.0,0.20919944]
[1727963277495,0.3608,60285.0,60272.0,0.003]
[1727963277496,0.3608,60285.0,60282.0,0.08265742]
[1727963277702,0.443751,60285.0,60284.0,0.06612074]
[1727963277901,0.443751,60285.0,60281.0,0.16561342]
[1727963277902,0.082955,60282.0,60281.0,0.16561342]